[Event "*** Titled Tuesday Blitz"]
[Site "Chess.com"]
[Date "2020.04.07"]
[Round "3"]
[White "Perimir"]
[Black "Mazetovic"]
[Result "0-1"]
[WhiteElo "2407"]
[BlackElo "2638"]
[TimeControl "180+1"]
[EndTime "13:28:32 PDT"]
[Termination "Mazetovic won by resignation"]

1. e4 {[%clk 0:01:23]} 1... c5 {[%clk 0:02:58.5]} 2. Nc3 {[%clk 0:01:22.9]} 2...
Nc6 {[%clk 0:02:58.9]} 3. g3 {[%clk 0:01:23.8]} 3... g6 {[%clk 0:02:58.3]} 4.
Bg2 {[%clk 0:01:24.7]} 4... Bg7 {[%clk 0:02:59]} 5. d3 {[%clk 0:01:25.4]} 5...
h5 {[%clk 0:02:59]} 6. Be3 {[%clk 0:01:26.1]} 6... d6 {[%clk 0:02:56.9]} 7. Qd2
{[%clk 0:01:26.6]} 7... h4 {[%clk 0:02:56.5]} 8. gxh4 {[%clk 0:01:24.4]} 8...
Rb8 {[%clk 0:02:53.8]} 9. f4 {[%clk 0:01:20.6]} 9... Rxh4 {[%clk 0:02:52.5]} 10.
Nf3 {[%clk 0:01:20.3]} 10... Rh8 {[%clk 0:02:52.1]} 11. h4 {[%clk 0:01:20.7]}
11... Nf6 {[%clk 0:02:52.2]} 12. Ng5 {[%clk 0:01:18.1]} 12... Ng4 {[%clk
0:02:51]} 13. Bg1 {[%clk 0:01:18.6]} 13... b5 {[%clk 0:02:49.9]} 14. O-O-O
{[%clk 0:01:17.6]} 14... b4 {[%clk 0:02:49.7]} 15. Nd5 {[%clk 0:01:16.6]} 15...
e6 {[%clk 0:02:48.7]} 16. Ne3 {[%clk 0:01:15.5]} 16... Nxe3 {[%clk 0:02:48.1]}
17. Bxe3 {[%clk 0:01:16.4]} 17... Qa5 {[%clk 0:02:48.2]} 18. Kb1 {[%clk
0:01:16]} 18... Nd4 {[%clk 0:02:40.1]} 19. Bxd4 {[%clk 0:01:12.4]} 19... Bxd4
{[%clk 0:02:39.5]} 20. Bf3 {[%clk 0:01:01.6]} 20... Rb6 {[%clk 0:02:35.1]} 21.
h5 {[%clk 0:01:01.7]} 21... Bc3 {[%clk 0:02:30.8]} 22. hxg6 {[%clk 0:00:51.6]}
22... Rxh1 {[%clk 0:02:18.5]} 23. gxf7+ {[%clk 0:00:51.2]} 23... Ke7 {[%clk
0:02:15.3]} 24. Rxh1 {[%clk 0:00:49.1]} 24... Bg7 {[%clk 0:01:53.3]} 25. Rh7
{[%clk 0:00:42.8]} 25... Ra6 {[%clk 0:01:42.3]} 26. a3 {[%clk 0:00:42.5]} 26...
Bxb2 {[%clk 0:01:38.5]} 27. Qg2 {[%clk 0:00:16.1]} 27... Qxa3 {[%clk 0:01:19.2]}
28. f8=Q+ {[%clk 0:00:15.6]} 28... Kxf8 {[%clk 0:01:19.5]} 29. Nxe6+ {[%clk
0:00:15.6]} 29... Bxe6 {[%clk 0:01:19.8]} 0-1

[Event "*** Titled Tuesday Blitz"]
[Site "Chess.com"]
[Date "2020.04.07"]
[Round "3"]
[White "Hikaru"]
[Black "fmshawnrl123"]
[Result "1-0"]
[WhiteElo "3265"]
[BlackElo "2723"]
[TimeControl "180+1"]
[EndTime "13:28:33 PDT"]
[Termination "Hikaru won by resignation"]

1. e4 {[%clk 0:03:00.9]} 1... c6 {[%clk 0:02:57]} 2. Nc3 {[%clk 0:02:59.8]} 2...
d5 {[%clk 0:02:57.9]} 3. Nf3 {[%clk 0:03:00.7]} 3... dxe4 {[%clk 0:02:54.9]} 4.
Nxe4 {[%clk 0:03:00.6]} 4... Nf6 {[%clk 0:02:55.8]} 5. Qe2 {[%clk 0:02:58.9]}
5... Nxe4 {[%clk 0:02:55.3]} 6. Qxe4 {[%clk 0:02:59.8]} 6... Nd7 {[%clk
0:02:55.9]} 7. Bc4 {[%clk 0:02:59.7]} 7... Nf6 {[%clk 0:02:56.5]} 8. Ne5 {[%clk
0:02:59.8]} 8... e6 {[%clk 0:02:57.1]} 9. Qe2 {[%clk 0:02:59.9]} 9... b5 {[%clk
0:02:57.7]} 10. Bd3 {[%clk 0:03:00.1]} 10... Bb7 {[%clk 0:02:55]} 11. b3 {[%clk
0:02:56.6]} 11... Bd6 {[%clk 0:02:52]} 12. Bb2 {[%clk 0:02:55.2]} 12... Nd5
{[%clk 0:02:52.2]} 13. Be4 {[%clk 0:02:43.7]} 13... Qc7 {[%clk 0:02:40]} 14.
Bxd5 {[%clk 0:02:33.8]} 14... cxd5 {[%clk 0:02:31.3]} 15. Qxb5+ {[%clk
0:02:32.9]} 15... Ke7 {[%clk 0:02:31.1]} 16. O-O {[%clk 0:02:25]} 16... Rhc8
{[%clk 0:02:13.1]} 17. Rac1 {[%clk 0:02:19.1]} 17... a5 {[%clk 0:01:58.6]} 18.
Rfe1 {[%clk 0:02:13.9]} 18... a4 {[%clk 0:01:51.9]} 19. Qd3 {[%clk 0:02:07]}
19... axb3 {[%clk 0:01:19.3]} 20. axb3 {[%clk 0:02:06.3]} 20... Ra2 {[%clk
0:01:05.8]} 21. Bc3 {[%clk 0:02:05.2]} 21... Bxe5 {[%clk 0:00:28]} 22. Bxe5
{[%clk 0:02:01.7]} 22... Qc6 {[%clk 0:00:28.5]} 23. Qxh7 {[%clk 0:01:59.5]}
23... Rxc2 {[%clk 0:00:23.9]} 24. Qh4+ {[%clk 0:01:38]} 24... f6 {[%clk
0:00:21.5]} 25. Rxc2 {[%clk 0:01:37.8]} 25... Qxc2 {[%clk 0:00:20.8]} 26. Qb4+
{[%clk 0:01:37.5]} 26... Ke8 {[%clk 0:00:18.7]} 27. Bxf6 {[%clk 0:01:30.7]}
27... gxf6 {[%clk 0:00:19.6]} 28. Qxb7 {[%clk 0:01:27.7]} 28... Rc6 {[%clk
0:00:13.5]} 29. h4 {[%clk 0:01:22.9]} 29... Qc5 {[%clk 0:00:11.1]} 30. h5 {[%clk
0:01:19.8]} 30... Rb6 {[%clk 0:00:10.3]} 31. Qg7 {[%clk 0:01:19]} 1-0

[Event "*** Titled Tuesday Blitz"]
[Site "Chess.com"]
[Date "2020.04.07"]
[Round "3"]
[White "Shahinyan_ChessMood"]
[Black "GadimbayliA"]
[Result "1/2-1/2"]
[WhiteElo "2665"]
[BlackElo "2923"]
[TimeControl "180+1"]
[EndTime "13:28:33 PDT"]
[Termination "Game drawn by agreement"]

1. e4 {[%clk 0:03:00.9]} 1... e5 {[%clk 0:03:00.2]} 2. Nf3 {[%clk 0:03:00.6]}
2... d5 {[%clk 0:03:00.6]} 3. d3 {[%clk 0:02:55.3]} 3... dxe4 {[%clk 0:03:00.5]}
4. dxe4 {[%clk 0:02:56.2]} 4... Qxd1+ {[%clk 0:03:01.3]} 5. Kxd1 {[%clk
0:02:57.1]} 5... f6 {[%clk 0:03:02.2]} 6. Be3 {[%clk 0:02:57]} 6... Nh6 {[%clk
0:03:02.4]} 7. h3 {[%clk 0:02:56.4]} 7... Nf7 {[%clk 0:03:01.8]} 8. Nbd2 {[%clk
0:02:56.3]} 8... Be6 {[%clk 0:02:56.4]} 9. c3 {[%clk 0:02:55.2]} 9... Nd7 {[%clk
0:02:55.5]} 10. Kc2 {[%clk 0:02:55.1]} 10... Bc5 {[%clk 0:02:55.5]} 11. Bc4
{[%clk 0:02:54]} 11... Ke7 {[%clk 0:02:47.9]} 12. Rhe1 {[%clk 0:02:47.8]} 12...
a5 {[%clk 0:02:40.6]} 13. Rad1 {[%clk 0:02:46.4]} 13... Rhd8 {[%clk 0:02:39.9]}
14. Nh4 {[%clk 0:02:32.9]} 14... g6 {[%clk 0:02:37.3]} 15. Nhf3 {[%clk 0:02:28]}
15... Bxe3 {[%clk 0:02:36.4]} 16. Rxe3 {[%clk 0:02:26.9]} 16... Nc5 {[%clk
0:02:36.8]} 17. Bxe6 {[%clk 0:02:20.2]} 17... Kxe6 {[%clk 0:02:33.9]} 18. Ne1
{[%clk 0:02:13.7]} 18... Rd7 {[%clk 0:02:29.3]} 19. Nd3 {[%clk 0:02:03.5]} 19...
Nxd3 {[%clk 0:02:29.3]} 20. Rxd3 {[%clk 0:02:04.4]} 20... Rxd3 {[%clk
0:02:30.2]} 21. Kxd3 {[%clk 0:02:05.3]} 21... Rd8+ {[%clk 0:02:31.1]} 22. Ke2
{[%clk 0:02:05.9]} 22... h5 {[%clk 0:02:22.9]} 23. Nc4 {[%clk 0:02:02.3]} 23...
Rxd1 {[%clk 0:02:21.9]} 24. Kxd1 {[%clk 0:02:03.2]} 24... b6 {[%clk 0:02:22.8]}
25. Ke2 {[%clk 0:02:02.8]} 25... Nd6 {[%clk 0:02:16.1]} 26. Nxd6 {[%clk
0:01:45.6]} 26... Kxd6 {[%clk 0:02:17]} 27. g4 {[%clk 0:01:44.4]} 27... hxg4
{[%clk 0:02:05.9]} 28. hxg4 {[%clk 0:01:45.3]} 28... Kc5 {[%clk 0:01:53.2]} 29.
Kd3 {[%clk 0:01:29.1]} 29... b5 {[%clk 0:01:48.3]} 30. b3 {[%clk 0:01:26.5]}
30... c6 {[%clk 0:01:42.3]} 31. a3 {[%clk 0:01:25.8]} 31... Kd6 {[%clk
0:01:40.1]} 32. b4 {[%clk 0:01:04.2]} 32... a4 {[%clk 0:00:49.1]} 1/2-1/2

[Event "*** Titled Tuesday Blitz"]
[Site "Chess.com"]
[Date "2020.04.07"]
[Round "3"]
[White "DanielRensch"]
[Black "Funkmaus"]
[Result "1-0"]
[WhiteElo "2526"]
[BlackElo "2204"]
[TimeControl "180+1"]
[EndTime "13:28:33 PDT"]
[Termination "DanielRensch won on time"]

1. e4 {[%clk 0:03:00.9]} 1... c6 {[%clk 0:02:59.8]} 2. d4 {[%clk 0:02:59.7]}
2... d5 {[%clk 0:03:00.3]} 3. exd5 {[%clk 0:02:59.8]} 3... cxd5 {[%clk
0:03:01.2]} 4. c4 {[%clk 0:02:59.9]} 4... Nf6 {[%clk 0:03:01.2]} 5. Nc3 {[%clk
0:02:59.6]} 5... Nc6 {[%clk 0:03:01.2]} 6. Bg5 {[%clk 0:02:58.7]} 6... Ne4
{[%clk 0:03:00.4]} 7. Nxe4 {[%clk 0:02:58]} 7... dxe4 {[%clk 0:03:00.3]} 8. d5
{[%clk 0:02:56.1]} 8... Ne5 {[%clk 0:02:57.9]} 9. Qd4 {[%clk 0:02:54.6]} 9... f6
{[%clk 0:02:52.1]} 10. Bd2 {[%clk 0:02:51.9]} 10... Bf5 {[%clk 0:02:17.8]} 11.
h3 {[%clk 0:02:43.4]} 11... h5 {[%clk 0:02:01.4]} 12. f4 {[%clk 0:02:25.9]}
12... Nd3+ {[%clk 0:01:37.4]} 13. Bxd3 {[%clk 0:02:25]} 13... exd3 {[%clk
0:01:38.3]} 14. Nf3 {[%clk 0:02:24.4]} 14... Rc8 {[%clk 0:01:17.3]} 15. b3
{[%clk 0:02:20.4]} 15... e5 {[%clk 0:01:09.9]} 16. fxe5 {[%clk 0:02:18]} 16...
Bc5 {[%clk 0:01:09.9]} 17. Qf4 {[%clk 0:02:18]} 17... Bh7 {[%clk 0:00:49.7]} 18.
Bc3 {[%clk 0:02:08.5]} 18... O-O {[%clk 0:00:45.9]} 19. e6 {[%clk 0:01:58.7]}
19... b5 {[%clk 0:00:37.4]} 20. Bd4 {[%clk 0:01:54.4]} 20... Bb4+ {[%clk
0:00:30.4]} 21. Kf2 {[%clk 0:01:54.3]} 21... bxc4 {[%clk 0:00:30.7]} 22. bxc4
{[%clk 0:01:43.9]} 22... Rxc4 {[%clk 0:00:29.4]} 23. Rhc1 {[%clk 0:01:43.6]}
23... Qc8 {[%clk 0:00:20.1]} 24. Rxc4 {[%clk 0:01:14.8]} 24... Qxc4 {[%clk
0:00:19.3]} 25. Be3 {[%clk 0:01:10.9]} 25... Qc2+ {[%clk 0:00:17.1]} 26. Kg1
{[%clk 0:01:09.5]} 26... Bc3 {[%clk 0:00:12.4]} 27. Rf1 {[%clk 0:01:05.8]} 27...
Rd8 {[%clk 0:00:04.2]} 28. e7 {[%clk 0:01:05.5]} 28... Re8 {[%clk 0:00:04.4]}
29. d6 {[%clk 0:01:05.9]} 1-0

[Event "*** Titled Tuesday Blitz"]
[Site "Chess.com"]
[Date "2020.04.07"]
[Round "3"]
[White "XiaoKangZhong"]
[Black "aquaticpineapples"]
[Result "1-0"]
[WhiteElo "2423"]
[BlackElo "2228"]
[TimeControl "180+1"]
[EndTime "13:28:34 PDT"]
[Termination "XiaoKangZhong won by checkmate"]

1. e4 {[%clk 0:03:00.9]} 1... d5 {[%clk 0:02:59.4]} 2. exd5 {[%clk 0:03:00.8]}
2... Qxd5 {[%clk 0:03:00.3]} 3. Nc3 {[%clk 0:03:01.5]} 3... Qa5 {[%clk
0:03:00.7]} 4. d4 {[%clk 0:02:59.2]} 4... Nf6 {[%clk 0:03:01.2]} 5. Nf3 {[%clk
0:02:59.2]} 5... Nc6 {[%clk 0:03:01.5]} 6. Be2 {[%clk 0:02:59.1]} 6... Bg4
{[%clk 0:03:01.5]} 7. O-O {[%clk 0:02:56]} 7... O-O-O {[%clk 0:03:01.3]} 8. Be3
{[%clk 0:02:55.6]} 8... e5 {[%clk 0:03:01.2]} 9. h3 {[%clk 0:02:41.7]} 9... Bxf3
{[%clk 0:03:00.5]} 10. Bxf3 {[%clk 0:02:41.5]} 10... exd4 {[%clk 0:03:00.4]} 11.
Bxc6 {[%clk 0:02:25.8]} 11... bxc6 {[%clk 0:02:57.6]} 12. Bxd4 {[%clk
0:02:24.2]} 12... c5 {[%clk 0:02:55.7]} 13. Qf3 {[%clk 0:02:24]} 13... cxd4
{[%clk 0:02:50.1]} 14. Rad1 {[%clk 0:02:02.6]} 14... Kb8 {[%clk 0:02:19]} 15.
Rd3 {[%clk 0:01:54.6]} 15... Bb4 {[%clk 0:02:07.5]} 16. Ne2 {[%clk 0:01:43.6]}
16... Rhe8 {[%clk 0:01:58.7]} 17. a3 {[%clk 0:01:41.7]} 17... Bd6 {[%clk
0:01:48.2]} 18. Nxd4 {[%clk 0:01:30.9]} 18... Bh2+ {[%clk 0:01:02.6]} 19. Kxh2
{[%clk 0:00:54.5]} 19... Rxd4 {[%clk 0:01:00.1]} 20. Rxd4 {[%clk 0:00:54]} 20...
Qe5+ {[%clk 0:00:57.2]} 21. Qf4 {[%clk 0:00:54.5]} 21... Nh5 {[%clk 0:00:44.1]}
22. Qxe5 {[%clk 0:00:54]} 22... Rxe5 {[%clk 0:00:45]} 23. Rfd1 {[%clk
0:00:50.4]} 23... Nf6 {[%clk 0:00:42]} 24. R1d2 {[%clk 0:00:48.4]} 24... a5
{[%clk 0:00:37.5]} 25. Rd8+ {[%clk 0:00:47.6]} 25... Kb7 {[%clk 0:00:37.4]} 26.
Rf8 {[%clk 0:00:47.4]} 26... Re7 {[%clk 0:00:37.1]} 27. Rdd8 {[%clk 0:00:46.9]}
27... g6 {[%clk 0:00:35.6]} 28. Rb8+ {[%clk 0:00:46.9]} 28... Kc6 {[%clk
0:00:35.4]} 29. Ra8 {[%clk 0:00:47.4]} 29... Kb5 {[%clk 0:00:29.8]} 30. Rfb8+
{[%clk 0:00:46.8]} 30... Ka4 {[%clk 0:00:30.3]} 31. Rb4# {[%clk 0:00:46.8]} 1-0

[Event "*** Titled Tuesday Blitz"]
[Site "Chess.com"]
[Date "2020.04.07"]
[Round "3"]
[White "vizumatv4hoda"]
[Black "matiss90"]
[Result "1-0"]
[WhiteElo "2736"]
[BlackElo "2513"]
[TimeControl "180+1"]
[EndTime "13:28:36 PDT"]
[Termination "vizumatv4hoda won on time"]

1. e4 {[%clk 0:03:00.9]} 1... c5 {[%clk 0:02:58]} 2. c3 {[%clk 0:02:59.6]} 2...
Nf6 {[%clk 0:02:57.6]} 3. e5 {[%clk 0:02:59.4]} 3... Nd5 {[%clk 0:02:57.7]} 4.
d4 {[%clk 0:02:59.3]} 4... cxd4 {[%clk 0:02:57.9]} 5. Nf3 {[%clk 0:03:00.2]}
5... Nc6 {[%clk 0:02:57.6]} 6. cxd4 {[%clk 0:02:58.5]} 6... g6 {[%clk
0:02:57.6]} 7. Bc4 {[%clk 0:02:56.9]} 7... Nb6 {[%clk 0:02:57.1]} 8. Bb3 {[%clk
0:02:56.8]} 8... Bg7 {[%clk 0:02:56.8]} 9. O-O {[%clk 0:02:56.6]} 9... O-O
{[%clk 0:02:56.7]} 10. Nc3 {[%clk 0:02:55.1]} 10... d6 {[%clk 0:02:56.9]} 11.
Bf4 {[%clk 0:02:50.3]} 11... Bg4 {[%clk 0:02:55.8]} 12. exd6 {[%clk 0:02:49.2]}
12... exd6 {[%clk 0:02:55.6]} 13. Nb5 {[%clk 0:02:42.7]} 13... a6 {[%clk
0:02:48.1]} 14. Nxd6 {[%clk 0:02:40.5]} 14... Nxd4 {[%clk 0:02:46.6]} 15. Nxf7
{[%clk 0:02:40.4]} 15... Rxf7 {[%clk 0:02:17.8]} 16. Bxf7+ {[%clk 0:02:41.3]}
16... Kh8 {[%clk 0:01:52]} 17. Be3 {[%clk 0:02:34.2]} 17... Bxf3 {[%clk
0:01:27.2]} 18. gxf3 {[%clk 0:02:35.1]} 18... Qh4 {[%clk 0:01:18]} 19. Kh1
{[%clk 0:02:34.8]} 19... Rf8 {[%clk 0:01:13.9]} 20. f4 {[%clk 0:02:24.1]} 20...
Nf5 {[%clk 0:00:18.8]} 21. Bxb6 {[%clk 0:02:17.6]} 21... Rxf7 {[%clk 0:00:18.5]}
22. Re1 {[%clk 0:02:17.8]} 22... h5 {[%clk 0:00:15.5]} 23. Qf3 {[%clk
0:02:13.7]} 23... Kh7 {[%clk 0:00:14.7]} 24. Rad1 {[%clk 0:02:12.3]} 24... Qf6
{[%clk 0:00:12.2]} 25. Ba5 {[%clk 0:02:00.8]} 25... Qxb2 {[%clk 0:00:11.6]} 26.
Re2 {[%clk 0:02:01.1]} 26... Qb5 {[%clk 0:00:09.8]} 27. Rd5 {[%clk 0:01:58.7]}
27... Qb1+ {[%clk 0:00:07.4]} 28. Re1 {[%clk 0:01:53.6]} 28... Qxa2 {[%clk
0:00:05]} 29. Bb6 {[%clk 0:01:54.1]} 29... Nh4 {[%clk 0:00:03.4]} 30. Qe4 {[%clk
0:01:46.9]} 30... Re7 {[%clk 0:00:03.2]} 31. Rxh5+ {[%clk 0:01:38.1]} 31... Kg8
{[%clk 0:00:02.9]} 32. Qxe7 {[%clk 0:01:38.6]} 32... Qd5+ {[%clk 0:00:01.9]} 33.
Rxd5 {[%clk 0:01:37.7]} 33... Kh7 {[%clk 0:00:02.8]} 34. Rd7 {[%clk 0:01:36.2]}
1-0

[Event "*** Titled Tuesday Blitz"]
[Site "Chess.com"]
[Date "2020.04.07"]
[Round "3"]
[White "amintabatabaei"]
[Black "Stormeman100100"]
[Result "1-0"]
[WhiteElo "2806"]
[BlackElo "2475"]
[TimeControl "180+1"]
[EndTime "13:28:36 PDT"]
[Termination "amintabatabaei won by resignation"]

1. e4 {[%clk 0:03:00.9]} 1... e5 {[%clk 0:02:57.5]} 2. Nf3 {[%clk 0:02:59.4]}
2... Nc6 {[%clk 0:02:57.6]} 3. Bb5 {[%clk 0:02:59.7]} 3... a6 {[%clk 0:02:54.7]}
4. Ba4 {[%clk 0:02:58.5]} 4... Nge7 {[%clk 0:02:54.2]} 5. O-O {[%clk 0:02:57.3]}
5... g6 {[%clk 0:02:54.5]} 6. c3 {[%clk 0:02:51.9]} 6... Bg7 {[%clk 0:02:53.1]}
7. d4 {[%clk 0:02:50.7]} 7... exd4 {[%clk 0:02:53.5]} 8. cxd4 {[%clk 0:02:51.6]}
8... O-O {[%clk 0:02:53]} 9. d5 {[%clk 0:02:51]} 9... Na5 {[%clk 0:02:46.4]} 10.
d6 {[%clk 0:02:19.8]} 10... cxd6 {[%clk 0:02:42.8]} 11. Qxd6 {[%clk 0:02:20.7]}
11... b5 {[%clk 0:02:36.3]} 12. Bb3 {[%clk 0:02:20.7]} 12... Nxb3 {[%clk
0:02:31.7]} 13. axb3 {[%clk 0:02:21.6]} 13... Bb7 {[%clk 0:02:31.6]} 14. Nc3
{[%clk 0:02:17.5]} 14... Re8 {[%clk 0:02:13]} 15. Bg5 {[%clk 0:02:14.2]} 15...
Nc8 {[%clk 0:02:02.9]} 16. Qd3 {[%clk 0:02:04.7]} 16... f6 {[%clk 0:01:50.9]}
17. Be3 {[%clk 0:02:01.3]} 17... Qe7 {[%clk 0:01:49]} 18. Rfe1 {[%clk
0:01:59.3]} 18... Nd6 {[%clk 0:01:47.2]} 19. Bc5 {[%clk 0:01:58.6]} 19... Bf8
{[%clk 0:01:38.5]} 20. Rad1 {[%clk 0:01:56.8]} 20... Qe6 {[%clk 0:01:22.8]} 21.
Bxd6 {[%clk 0:01:54.2]} 21... Qxb3 {[%clk 0:01:22.7]} 22. Bxf8 {[%clk
0:01:53.5]} 22... Rxf8 {[%clk 0:01:23.6]} 23. Qxd7 {[%clk 0:01:52.8]} 23... Rf7
{[%clk 0:01:23.9]} 24. Qd2 {[%clk 0:01:52.9]} 24... Re8 {[%clk 0:01:22]} 25. Nd4
{[%clk 0:01:51.4]} 25... Qc4 {[%clk 0:01:21.1]} 26. Qe2 {[%clk 0:01:50.4]} 26...
Qc5 {[%clk 0:01:21]} 27. Nb3 {[%clk 0:01:46.6]} 27... Qg5 {[%clk 0:01:20]} 28.
Qd2 {[%clk 0:01:42.5]} 28... Qh5 {[%clk 0:01:17.4]} 29. Qd6 {[%clk 0:01:34.1]}
29... Re5 {[%clk 0:01:14.6]} 30. Na5 {[%clk 0:01:28.9]} 30... Bc8 {[%clk
0:00:49.1]} 31. Nd5 {[%clk 0:01:23.1]} 31... Rg5 {[%clk 0:00:42]} 32. Nxf6+
{[%clk 0:01:09.2]} 32... Rxf6 {[%clk 0:00:41.3]} 33. Qxf6 {[%clk 0:01:10.1]}
33... Rxg2+ {[%clk 0:00:37.5]} 34. Kxg2 {[%clk 0:01:01.4]} 34... Bh3+ {[%clk
0:00:35.7]} 35. Kh1 {[%clk 0:01:02]} 35... Qf3+ {[%clk 0:00:34.4]} 36. Qxf3
{[%clk 0:01:00.1]} 1-0

[Event "*** Titled Tuesday Blitz"]
[Site "Chess.com"]
[Date "2020.04.07"]
[Round "3"]
[White "tteshan"]
[Black "eightbyeightchess"]
[Result "1-0"]
[WhiteElo "2198"]
[BlackElo "2334"]
[TimeControl "180+1"]
[EndTime "13:28:40 PDT"]
[Termination "tteshan won by resignation"]

1. d4 {[%clk 0:03:00.9]} 1... d5 {[%clk 0:02:58.7]} 2. c4 {[%clk 0:03:00]} 2...
c6 {[%clk 0:02:57.8]} 3. Nc3 {[%clk 0:02:59.9]} 3... Nf6 {[%clk 0:02:55.1]} 4.
e3 {[%clk 0:02:56.6]} 4... a6 {[%clk 0:02:52.9]} 5. Nf3 {[%clk 0:02:56]} 5...
Bg4 {[%clk 0:02:52.9]} 6. cxd5 {[%clk 0:02:52.5]} 6... cxd5 {[%clk 0:02:52.5]}
7. Qb3 {[%clk 0:02:52.7]} 7... b5 {[%clk 0:02:41.3]} 8. Ne5 {[%clk 0:02:48.9]}
8... Bf5 {[%clk 0:02:11.1]} 9. Be2 {[%clk 0:02:45.7]} 9... g6 {[%clk 0:02:10.6]}
10. Bf3 {[%clk 0:02:44.2]} 10... e6 {[%clk 0:02:08.4]} 11. O-O {[%clk
0:02:43.8]} 11... Bg7 {[%clk 0:02:08.3]} 12. Be2 {[%clk 0:02:44.1]} 12... O-O
{[%clk 0:01:59.5]} 13. a4 {[%clk 0:02:44.4]} 13... bxa4 {[%clk 0:01:56.5]} 14.
Rxa4 {[%clk 0:02:42.4]} 14... Nfd7 {[%clk 0:01:53.3]} 15. f4 {[%clk 0:02:36.8]}
15... Nxe5 {[%clk 0:01:52.6]} 16. fxe5 {[%clk 0:02:35.9]} 16... Nd7 {[%clk
0:01:49.8]} 17. Bd2 {[%clk 0:02:34.4]} 17... Rb8 {[%clk 0:01:48.9]} 18. Qa3
{[%clk 0:02:30.2]} 18... Qb6 {[%clk 0:01:46.8]} 19. b4 {[%clk 0:02:06.8]} 19...
Rfc8 {[%clk 0:01:24.6]} 20. g4 {[%clk 0:01:36.9]} 20... Be4 {[%clk 0:01:17.9]}
21. Rxa6 {[%clk 0:01:34.5]} 21... Qxb4 {[%clk 0:00:58.3]} 22. Qxb4 {[%clk
0:01:32.2]} 22... Rxb4 {[%clk 0:00:59.2]} 23. Nxe4 {[%clk 0:01:31.5]} 23... Rb2
{[%clk 0:00:59.8]} 24. Nd6 {[%clk 0:01:25.8]} 24... Rxd2 {[%clk 0:00:51.6]} 25.
Nxc8 {[%clk 0:01:23.9]} 25... Rxe2 {[%clk 0:00:51.2]} 26. Nd6 {[%clk 0:01:16.7]}
26... h5 {[%clk 0:00:49.2]} 27. gxh5 {[%clk 0:01:14.1]} 27... Rxe3 {[%clk
0:00:44.7]} 28. Ra8+ {[%clk 0:01:08.3]} 28... Kh7 {[%clk 0:00:43.8]} 29. hxg6+
{[%clk 0:01:04.8]} 29... Kxg6 {[%clk 0:00:33.4]} 30. Rxf7 {[%clk 0:00:52.6]}
30... Nxe5 {[%clk 0:00:32.4]} 31. dxe5 {[%clk 0:00:50]} 31... Bxe5 {[%clk
0:00:33.3]} 32. Rg8+ {[%clk 0:00:49]} 1-0

[Event "*** Titled Tuesday Blitz"]
[Site "Chess.com"]
[Date "2020.04.07"]
[Round "3"]
[White "esteban062000"]
[Black "rynos0411"]
[Result "0-1"]
[WhiteElo "2138"]
[BlackElo "2369"]
[TimeControl "180+1"]
[EndTime "13:28:40 PDT"]
[Termination "rynos0411 won by resignation"]

1. Nf3 {[%clk 0:03:00.9]} 1... Nf6 {[%clk 0:02:56.2]} 2. c4 {[%clk 0:03:00.3]}
2... c5 {[%clk 0:02:55.5]} 3. b3 {[%clk 0:03:00.2]} 3... Nc6 {[%clk 0:02:54.4]}
4. g3 {[%clk 0:02:59.6]} 4... g6 {[%clk 0:02:54.2]} 5. Bb2 {[%clk 0:02:59.4]}
5... Bg7 {[%clk 0:02:54.5]} 6. Bg2 {[%clk 0:02:59.9]} 6... O-O {[%clk
0:02:54.6]} 7. O-O {[%clk 0:03:00]} 7... d5 {[%clk 0:02:53.4]} 8. cxd5 {[%clk
0:02:59.9]} 8... Nxd5 {[%clk 0:02:53.2]} 9. Bxg7 {[%clk 0:02:59.6]} 9... Kxg7
{[%clk 0:02:54.1]} 10. Nc3 {[%clk 0:02:56.8]} 10... Nxc3 {[%clk 0:02:53.7]} 11.
dxc3 {[%clk 0:02:57.7]} 11... Bf5 {[%clk 0:02:52.3]} 12. Nh4 {[%clk 0:02:51.1]}
12... Bd7 {[%clk 0:02:44.2]} 13. Qd5 {[%clk 0:02:38.8]} 13... b6 {[%clk
0:02:33.5]} 14. Rfd1 {[%clk 0:02:30.7]} 14... Be8 {[%clk 0:02:33]} 15. Qg5
{[%clk 0:01:54.2]} 15... Qc7 {[%clk 0:02:24.3]} 16. Nf5+ {[%clk 0:01:35.3]}
16... Kg8 {[%clk 0:02:16.6]} 17. Bxc6 {[%clk 0:01:29.6]} 17... Bxc6 {[%clk
0:02:12.2]} 18. Nxe7+ {[%clk 0:01:22.3]} 18... Kg7 {[%clk 0:02:12.6]} 19. Nf5+
{[%clk 0:01:19.7]} 19... Kg8 {[%clk 0:02:11.2]} 20. Rd6 {[%clk 0:00:36.8]} 20...
f6 {[%clk 0:01:37.8]} 21. Rxc6 {[%clk 0:00:36.7]} 21... fxg5 {[%clk 0:01:31.6]}
22. Nh6+ {[%clk 0:00:31.4]} 22... Kg7 {[%clk 0:01:30.1]} 23. Rxc7+ {[%clk
0:00:30.9]} 23... Kxh6 {[%clk 0:01:30.6]} 24. Rd1 {[%clk 0:00:30.4]} 24... Rfe8
{[%clk 0:01:30.7]} 25. Rdd7 {[%clk 0:00:28.8]} 25... g4 {[%clk 0:01:29.4]} 26.
Rxh7+ {[%clk 0:00:24.6]} 26... Kg5 {[%clk 0:01:29]} 27. h4+ {[%clk 0:00:22.4]}
27... gxh3 {[%clk 0:01:28.7]} 28. f4+ {[%clk 0:00:19.4]} 28... Kg4 {[%clk
0:01:27.2]} 29. Kf2 {[%clk 0:00:19]} 29... Rh8 {[%clk 0:01:20.3]} 30. Rh4+
{[%clk 0:00:11.3]} 30... Rxh4 {[%clk 0:01:19]} 31. gxh4 {[%clk 0:00:11.7]} 31...
Rh8 {[%clk 0:01:17.2]} 32. Rg7 {[%clk 0:00:11]} 32... Rxh4 {[%clk 0:01:12.6]}
33. Rxg6+ {[%clk 0:00:11.1]} 33... Kxf4 {[%clk 0:01:13.3]} 34. Rg8 {[%clk
0:00:09.6]} 34... h2 {[%clk 0:01:12.6]} 35. Rf8+ {[%clk 0:00:10]} 35... Ke5
{[%clk 0:01:11.3]} 36. Re8+ {[%clk 0:00:10.1]} 36... Kd6 {[%clk 0:01:10.5]} 37.
Rd8+ {[%clk 0:00:10.4]} 37... Kc7 {[%clk 0:01:10.3]} 0-1